[Event "Kvika Banki League Iceland 2022-23"]
[Site "Reykjavik"]
[Date "2022.10.16"]
[Round "5.19"]
[White "Hjartarson, Johann"]
[Black "Gretarsson, Hjorvar Steinn"]
[Result "0-1"]
[ECO "D51"]
[WhiteElo "2468"]
[BlackElo "2533"]
[Annotator "TA"]
[PlyCount "76"]
[EventDate "2022.10.13"]
[EventType "team-tourn"]
[EventCountry "ISL"]
[SourceTitle "playchess.com"]
[Source "ChessBase"]
[SourceQuality "1"]
[TimeControl "5400+30"]

{[%evp 11,76,18,49,32,66,51,60,59,44,37,63,58,55,55,56,60,55,27,85,79,95,89,81,61,75,79,104,66,72,32,41,26,39,-154,-161,-146,-166,-154,-166,-241,-239,-234,-234,-249,-220,-385,-372,-401,-402,-539,-474,-533,-520,-515,-498,-562,-561,-530,-519,-702,-694,-5714,-12793,-2540,-2016,-1306,-1288]} 1. d4 {[%emt 0:00:03]} Nf6 {[%emt 0:11:02]} 2. c4 {[%emt 0:00:15]} e6 {[%emt 0:00:43]} 3. Nf3 {[%emt 0:00:19]} d5 {[%emt 0:01:18]} 4. Nc3 {[%emt 0:00:34]} Nbd7 {[%emt 0:03:42]} 5. Bg5 {[%emt 0:01:16]} h6 {[%emt 0:01:18]} 6. Bh4 {[%emt 0:00:20]} Bb4 {[%emt 0:06:42]} 7. e3 {[%emt 0:00:34] D51: Queen's Gambit Declined: 4 Bg5 Nbd7 sidelines.} g5 {[%emt 0:04:04]} 8. Bg3 {[%emt 0:00:09]} Ne4 {[%emt 0:00:26]} 9. Nd2 {[%emt 0:05:10] [#] White is slightly better.} Nxg3 $146 {[%emt 0:06:15]} ({Predecessor:} 9... Nxc3 10. bxc3 Bxc3 11. Rc1 Ba5 12. Bd3 c6 13. h4 Rg8 14. hxg5 hxg5 15. Kf1 Bb4 {1-0 (26) Raessler,A (2341)-Splichal,J (1950) ICCF email 2016}) 10. hxg3 {[%emt 0:00:29]} c6 {[%emt 0:01:41]} 11. Qc2 {[%emt 0:04:06]} Nf6 {[%emt 0:09:35]} 12. Be2 {[%emt 0:01:49]} Kf8 {[%emt 0:03:59]} 13. a3 {[%emt 0:01:45]} (13. e4 {looks sharper.} Nxe4 14. Ndxe4 dxe4 15. Qxe4 Kg7 16. O-O-O) 13... Be7 {[%emt 0:05:20]} 14. f4 {[%emt 0:12:16] Strongly threatening fxg5.} (14. Nf3 {seems wilder.} Ng4 15. Rd1 Kg7 16. Ne5) 14... gxf4 {[%emt 0:03:48]} (14... Kg7 $11) 15. gxf4 $16 {[%emt 0:00:17]} c5 {[%emt 0:01:23]} 16. dxc5 {[%emt 0:09:55]} Bxc5 {[%emt 0:03:56]} 17. Qd3 {[%emt 0:00:47]} b6 {[%emt 0:06:47]} 18. cxd5 {[%emt 0:07:36]} exd5 {[%emt 0:01:15]} 19. b4 {[%emt 0:00:19]} Be7 {[%emt 0:01:22][%cal Bc5e7,Be7f6,Bf6d4,Bd4c3][%mdl 32]} 20. Bf3 {[%emt 0:01:38]} Bb7 {[%emt 0:01:24]} 21. Qd4 {[%emt 0:08:18]} Rc8 {[%emt 0:02:42]} 22. Kf2 $2 {[%emt 0:06:50] [#]} (22. Rd1 $14 {stays ahead.}) 22... Ng4+ $1 $17 {[%emt 0:01:46][%mdl 512] Black continues to play with concentration.} 23. Bxg4 {[%emt 0:00:55][%cal Rd4h8]} Bf6 {[%emt 0:00:04]} 24. Bxc8 {[%emt 0:09:16]} ({Not} 24. Qd3 $2 Rxc3 25. Qf5 (25. Qe2 $2 d4 $19) 25... Qe7 $19) 24... Bxd4 {[%emt 0:00:04]} 25. Bxb7 {[%emt 0:00:43]} (25. exd4 {might work better.} Qxc8 26. Rac1) 25... Bxc3 $19 {[%emt 0:02:02]} 26. Rac1 {[%emt 0:05:54]} d4 {[%emt 0:01:25] Hoping for ...dxe3+.} ({And not} 26... Bxd2 27. Rc8 Qxc8 28. Bxc8 $11) 27. Nf3 {[%emt 0:00:39]} ({Don't go for} 27. Nc4 $2 b5 28. Ne5 dxe3+ 29. Kf3 Qd2 $19) 27... Qd7 {[%emt 0:04:59]} 28. Ba6 {[%emt 0:02:30]} (28. Be4) 28... dxe3+ {[%emt 0:02:07]} 29. Kxe3 {[%emt 0:00:20]} Qe6+ {[%emt 0:00:18]} 30. Kd3 {[%emt 0:01:22]} Bb2 {[%emt 0:01:16][%csl LRa3,LRc1] Black is clearly winning.} 31. Rc8+ {[%emt 0:03:30]} Kg7 {[%emt 0:00:05]} 32. Rxh8 {[%emt 0:00:06]} Kxh8 {[%emt 0:01:20]} 33. Bc4 {[%emt 0:00:26]} Qg6+ {[%emt 0:00:41]} 34. Ke3 {[%emt 0:00:12]} Qxg2 {[%emt 0:01:37]} 35. Rxh6+ {[%emt 0:01:18]} Kg7 {[%emt 0:00:06]} 36. Rh5 {[%emt 0:01:57] aiming for Rg5+.} Bc1+ {[%emt 0:00:44]} 37. Ke4 {[%emt 0:00:06]} Qg6+ {[%emt 0:00:31]} 38. Rf5 {[%emt 0:00:50]} Qc6+ {[%emt 0:00:06] Weighted Error Value: White=0.56/Black=0.08 (flawless)} 0-1

[Event "Kvika Banki League Iceland 2022-23"]
[Site "Reykjavik"]
[Date "2022.10.16"]
[Round "5.20"]
[White "Stefansson, Hannes"]
[Black "Thorfinnsson, Bragi"]
[Result "1/2-1/2"]
[ECO "B30"]
[WhiteElo "2527"]
[BlackElo "2421"]
[Annotator "TA"]
[PlyCount "69"]
[EventDate "2022.10.13"]
[EventType "team-tourn"]
[EventCountry "ISL"]
[SourceTitle "playchess.com"]
[Source "ChessBase"]
[SourceQuality "1"]
[TimeControl "5400+30"]

{[%evp 9,69,48,39,32,48,19,23,5,6,0,22,0,0,0,0,0,0,3,8,7,62,11,12,0,0,0,0,0,0,0,0,-15,0,0,13,16,8,0,0,0,0,0,2,6,8,0,1,0,0,0,0,0,0,0,0,0,0,0,0,0,0,0]} 1. e4 {[%emt 0:00:03]} c5 {[%emt 0:02:00]} 2. Nf3 {[%emt 0:00:08]} Nc6 {[%emt 0:00:08]} 3. Bb5 {[%emt 0:00:51]} e5 {[%emt 0:02:15]} 4. O-O {[%emt 0:07:22]} Bd6 {[%emt 0:00:50]} 5. c3 {[%emt 0:02:26]} a6 {[%emt 0:00:06]} 6. Ba4 {[%emt 0:06:07] B30: Sicilian: 2...Nc6 3 Bb5, lines without ...g6.} b5 {[%emt 0:01:02]} 7. Bc2 {[%emt 0:00:04]} Nge7 {[%emt 0:04:45]} 8. d4 {[%emt 0:04:02] White has an edge.} cxd4 {[%emt 0:04:05]} (8... exd4 {feels hotter.} 9. cxd4 cxd4 10. a4 Bb7) 9. cxd4 {[%emt 0:00:05]} exd4 {[%emt 0:01:01]} 10. Nxd4 {[%emt 0:00:28]} Nxd4 {[%emt 0:03:12]} 11. Qxd4 {[%emt 0:00:06]} Qc7 {[%emt 0:01:11][%csl LRc2,LRh2]} 12. h3 {[%emt 0:00:47]} ({Much weaker is} 12. Qxg7 Bxh2+ 13. Kh1 Be5 $17) 12... Bb7 {[%emt 0:12:46]} 13. Bb3 {[%emt 0:02:37] [#]} O-O $146 {[%emt 0:03:12]} ({Predecessor:} 13... Bh2+ 14. Kh1 Be5 15. Qd3 O-O 16. f4 Bf6 17. e5 Qc6 18. Rg1 Bh4 19. Be3 Rac8 {0-1 (56) Shuvalova,P (2510)-Abdumalik,Z (2503) Astana 2022}) 14. Nc3 {[%emt 0:00:22]} Bh2+ {[%emt 0:06:34]} 15. Kh1 {[%emt 0:00:07] White is more active.} Be5 {[%emt 0:00:03] The position is equal.} 16. Qd3 {[%emt 0:04:03]} b4 {[%emt 0:05:11]} 17. Nd5 {[%emt 0:00:15]} Nxd5 {[%emt 0:00:30]} 18. Bxd5 {[%emt 0:00:05]} Bxd5 {[%emt 0:01:35]} 19. Qxd5 {[%emt 0:00:05]} d6 {[%emt 0:01:23]} 20. Rb1 {[%emt 0:02:18]} Qc2 {[%emt 0:04:18]} 21. Bd2 {[%emt 0:01:04]} b3 {[%emt 0:03:01]} 22. axb3 {[%emt 0:02:19] [#] And now Rfc1 would win.} Rab8 {[%emt 0:01:51]} 23. Rfc1 {[%emt 0:08:33][%cal Bf1c1,Bc1c6,Bc6a6][%mdl 32]} Qxb3 {[%emt 0:00:41]} 24. Rc6 {[%emt 0:01:28]} Qxd5 {[%emt 0:19:16]} 25. exd5 {[%emt 0:00:15]} f5 {[%emt 0:01:29]} 26. Rxa6 {[%emt 0:02:22]} Bxb2 {[%emt 0:04:41]} 27. Be3 {[%emt 0:10:43]} Bf6 {[%emt 0:02:32]} 28. Rc1 {[%emt 0:00:38]} Rfd8 {[%emt 0:01:22]} 29. Bb6 {[%emt 0:01:15]} Rd7 {[%emt 0:00:57]} 30. g3 {[%emt 0:02:56]} Bd8 {[%emt 0:07:12]} 31. Bxd8 {[%emt 0:03:30]} Rbxd8 {[%emt 0:00:09]} 32. Re1 {[%emt 0:00:22]} Rc8 {[%emt 0:00:32]} 33. Re6 {[%emt 0:00:29]} Rc5 {[%emt 0:00:24]} 34. Raxd6 {[%emt 0:00:08]} Rxd5 {[%emt 0:00:12]} 35. Rxd7 {[%emt 0:00:49] Weighted Error Value: White=0.05 (flawless) /Black=0.02 (flawless)} 1/2-1/2

[Event "Kvika Banki League Iceland 2022-23"]
[Site "Reykjavik"]
[Date "2022.10.16"]
[Round "5.21"]
[White "Jakubiec, Artur"]
[Black "Movsziszian, Karen"]
[Result "1/2-1/2"]
[ECO "B06"]
[WhiteElo "2435"]
[BlackElo "2474"]
[Annotator "TA"]
[PlyCount "82"]
[EventDate "2022.10.13"]
[EventType "team-tourn"]
[EventCountry "ISL"]
[SourceTitle "playchess.com"]
[Source "ChessBase"]
[SourceQuality "1"]
[TimeControl "5400+30"]

{[%evp 9,82,45,45,50,55,48,50,47,64,63,68,55,47,36,35,42,37,35,27,8,75,62,87,85,79,82,81,80,110,86,125,100,127,127,122,121,125,123,126,73,73,73,114,60,60,52,52,54,70,32,54,54,54,52,60,41,60,0,31,0,0,0,0,0,0,0,48,0,0,0,0,0,0,0,0]} 1. e4 {[%emt 0:00:19]} g6 {[%emt 0:00:19]} 2. d4 {[%emt 0:00:09]} Bg7 {[%emt 0:00:04]} 3. Nc3 {[%emt 0:00:47]} c6 {[%emt 0:00:54]} 4. f4 {[%emt 0:00:21]} Qb6 {[%emt 0:00:23]} 5. Nf3 {[%emt 0:05:02]} d5 {[%emt 0:02:43]} 6. e5 {[%emt 0:04:26] B06: Modern Defence.} Bg4 {[%emt 0:00:10]} 7. Be2 {[%emt 0:00:04]} Nh6 {[%emt 0:00:05]} 8. Na4 {[%emt 0:11:58] White is slightly better.} Qa5+ $1 {[%emt 0:00:07] 8...Qa5+ is better than 8...Qc7.} 9. c3 $1 {[%emt 0:00:07]} Nd7 {[%emt 0:00:09]} 10. b4 {[%emt 0:03:24]} Qc7 {[%emt 0:01:22]} 11. Ng5 {[%emt 0:02:01]} Bxe2 {[%emt 0:11:21]} 12. Qxe2 {[%emt 0:00:10]} e6 {[%emt 0:01:21]} 13. O-O {[%emt 0:03:17][%cal Of4f5]} O-O {[%emt 0:03:44] [#]} 14. Nb2 $146 {[%emt 0:13:58][%cal Ba4b2,Bb2d3,Bd3c5][%mdl 32]} ({Predecessor:} 14. Rb1 Rae8 15. Nf3 f6 16. Bd2 b6 17. Nb2 Qc8 18. a4 c5 19. b5 cxd4 20. cxd4 {1-0 (42) Ter Sahakyan,S (2563)-Petrosian,T (2606) Yerevan 2018}) 14... Rae8 {[%emt 0:02:07]} (14... a5 $11) 15. a4 {[%emt 0:01:23] White is more active.} f6 {[%emt 0:03:19] [#]} 16. Nf3 {[%emt 0:00:16]} ({Much weaker is} 16. exf6 $6 Nxf6 17. Nd3 (17. Nxe6 $2 Qf7 $19) 17... Nf7 $11) 16... a5 {[%emt 0:10:12]} 17. Nd3 {[%emt 0:03:20]} axb4 {[%emt 0:09:05]} 18. cxb4 {[%emt 0:00:23]} Qb6 {[%emt 0:01:57]} 19. Nc5 {[%emt 0:03:56]} Rf7 {[%emt 0:06:50]} 20. Bd2 {[%emt 0:01:09]} fxe5 {[%emt 0:01:13]} 21. a5 {[%emt 0:02:52]} (21. Nxe5 Bxe5 22. fxe5 Nf5 $14) 21... Qc7 {[%emt 0:05:48]} 22. fxe5 {[%emt 0:00:26]} ({Don't do} 22. Nxe5 Nxc5 23. bxc5 Bxe5 24. fxe5 Rxf1+ 25. Rxf1 Nf5 $14) 22... Nxc5 {[%emt 0:06:00]} 23. bxc5 {[%emt 0:00:10]} Ref8 {[%emt 0:06:54]} 24. Ng5 {[%emt 0:17:47]} (24. Qd3 $142) 24... Rxf1+ $16 {[%emt 0:04:15]} 25. Rxf1 {[%emt 0:00:07]} Qd7 {[%emt 0:03:59]} 26. Rxf8+ {[%emt 0:01:23]} ({White should try} 26. Nf3 $16) 26... Bxf8 $14 {[%emt 0:00:02]} 27. g4 {[%emt 0:01:09]} Nf7 {[%emt 0:00:58]} 28. Nf3 {[%emt 0:01:43]} Qc8 {[%emt 0:00:54]} 29. Kg2 {[%emt 0:01:55]} Be7 {[%emt 0:00:11]} 30. h4 {[%emt 0:03:06]} Qa8 {[%emt 0:00:29]} 31. Kg3 {[%emt 0:02:12]} Bd8 {[%emt 0:01:31]} 32. Qd3 {[%emt 0:00:14]} Qa7 {[%emt 0:00:35]} 33. Bb4 {[%emt 0:00:10]} ({White should play} 33. Qb1 $14) 33... Kg7 {[%emt 0:01:15]} 34. Ne1 {[%emt 0:01:44]} Bxa5 {[%emt 0:02:14]} 35. Qa3 {[%emt 0:00:53]} b6 {[%emt 0:00:02]} 36. Nd3 {[%emt 0:00:42]} g5 {[%emt 0:04:15]} 37. h5 {[%emt 0:02:46]} Qb7 {[%emt 0:01:11]} (37... Nd8 $11) 38. cxb6 {[%emt 0:01:46]} (38. Bxa5 $14 {deserves consideration.} bxa5 39. Qxa5) 38... Bxb6 $11 {[%emt 0:00:02] The position is equal.} 39. Bc5 {[%emt 0:01:41] [#] Threatens to win with Qb3.} Bd8 {[%emt 0:00:29]} 40. Bf8+ {[%emt 0:02:09]} Kg8 {[%emt 0:00:01]} 41. Bb4 {[%emt 0:04:12]} Qb5 {[%emt 0:00:46] Weighted Error Value: White=0.12 (very precise) /Black=0.13 (very precise)} 1/2-1/2

[Event "Kvika Banki League Iceland 2022-23"]
[Site "Reykjavik"]
[Date "2022.10.16"]
[Round "5.22"]
[White "Arngrimsson, Dagur"]
[Black "Thorfinnsson, Bjorn"]
[Result "1-0"]
[ECO "D27"]
[WhiteElo "2377"]
[BlackElo "2365"]
[Annotator "TA"]
[PlyCount "41"]
[EventDate "2022.10.13"]
[EventType "team-tourn"]
[EventCountry "ISL"]
[SourceTitle "playchess.com"]
[Source "ChessBase"]
[SourceQuality "1"]
[TimeControl "5400+30"]

{[%evp 17,41,-4,0,-27,-18,-27,-23,-18,-21,-18,-8,-44,0,0,0,20,64,80,11,0,28,31,606,591,1539,1534]} 1. d4 {[%emt 0:00:02]} d5 {[%emt 0:00:30]} 2. c4 {[%emt 0:00:25]} e6 {[%emt 0:00:26]} 3. Nf3 {[%emt 0:00:40]} Nf6 {[%emt 0:05:46]} 4. e3 {[%emt 0:04:45]} Nbd7 {[%emt 0:07:19]} 5. Nc3 {[%emt 0:01:46]} a6 {[%emt 0:02:16]} 6. a3 {[%emt 0:08:42]} dxc4 {[%emt 0:05:30]} 7. Bxc4 {[%emt 0:01:46]} b5 {[%emt 0:00:07]} 8. Ba2 {[%emt 0:09:31]} c5 {[%emt 0:02:36]} 9. O-O {[%emt 0:00:32]} Bb7 {[%emt 0:00:34]} 10. Re1 {[%emt 0:01:03] D27: Queen's Gambit Accepted: Classical main line: 7 e4!? and 7 a4.} Be7 {[%emt 0:10:38]} 11. e4 {[%emt 0:18:00][%cal Be3e4,Be4e5,Be5e6,Be6f7][%mdl 32]} cxd4 {[%emt 0:00:34]} 12. Nxd4 {[%emt 0:02:31] [#] And now e5 would win. Black has an edge.} Ne5 {[%emt 0:01:56]} 13. Bf4 {[%emt 0:02:31]} Ng6 {[%emt 0:02:22]} 14. Bg3 {[%emt 0:01:22][%cal Od4f5]} Qb6 {[%emt 0:06:10] [#]} (14... O-O $5 {[%cal Rd8b6]}) 15. e5 $146 {[%emt 0:06:45]} ({Predecessor:} 15. Nf5 exf5 16. exf5 Qc6 17. f3 O-O 18. fxg6 Bc5+ 19. Kh1 hxg6 20. Qc2 {1-0 (34) Drazic,S (2505)-Erdos,V (2576) Trieste 2008}) 15... Nd7 {[%emt 0:03:10] [#] ...Rd8 is the strong threat.} 16. Nf5 $36 {[%emt 0:03:25][%mdl 2048] White fights for an advantage.} exf5 {[%emt 0:12:52]} 17. e6 {[%emt 0:10:35]} Nc5 {[%emt 0:01:46][%cal Rf7e6]} 18. exf7+ {[%emt 0:02:13]} Kf8 {[%emt 0:00:02] White must now prevent ...f4.} 19. Nd5 {[%emt 0:05:41][%mdl 1024] Inhibits f4. White has compensation. Chess con chili.} Qc6 {[%emt 0:00:33][%mdl 8192]} (19... Bxd5 $14 20. Qxd5 Rd8 21. Qxf5 Nd3) 20. f3 $18 {[%emt 0:02:28]} Bd6 {[%emt 0:07:54]} 21. Nb4 {[%emt 0:01:14][%csl LRc6,LRd6] Weighted Error Value: White=0.05 (flawless) /Black=0.48} 1-0

[Event "Kvika Banki League Iceland 2022-23"]
[Site "Reykjavik"]
[Date "2022.10.16"]
[Round "5.23"]
[White "Gunnarsson, Jon Viktor"]
[Black "Petersson, Baldur Teodor"]
[Result "1-0"]
[ECO "B82"]
[WhiteElo "2447"]
[BlackElo "2230"]
[Annotator "TA"]
[PlyCount "31"]
[EventDate "2022.10.13"]
[EventType "team-tourn"]
[EventCountry "ISL"]
[SourceTitle "playchess.com"]
[Source "ChessBase"]
[SourceQuality "1"]
[TimeControl "5400+30"]

{[%evp 14,31,25,33,60,60,91,58,87,87,83,85,88,83,85,73,181,171,168,173]} 1. e4 {[%emt 0:00:03]} c5 {[%emt 0:00:28]} 2. Nf3 {[%emt 0:00:09]} e6 {[%emt 0:00:09]} 3. d4 {[%emt 0:00:11]} cxd4 {[%emt 0:00:08]} 4. Nxd4 {[%emt 0:00:06]} a6 {[%emt 0:01:17]} 5. Nc3 {[%emt 0:00:10]} Qc7 {[%emt 0:00:09]} 6. Bd3 {[%emt 0:00:24]} Nf6 {[%emt 0:07:37]} 7. f4 {[%emt 0:00:11]} d6 {[%emt 0:01:11]} 8. Qf3 {[%emt 0:00:39]} b6 {[%emt 0:02:59] B82: Sicilian Scheveningen: 6 f4.} 9. g4 {[%emt 0:01:41]} h6 {[%emt 0:02:14] [#]} 10. h4 $146 {[%emt 0:01:56] White is more active.} ({Predecessor:} 10. Be3 Bb7 11. O-O-O Nbd7 12. h4 h5 13. g5 Ng4 14. g6 Nc5 15. f5 exf5 16. Bc4 {0-1 (45) Hirneise,T (2274)-Drabke,L (2391) Boeblingen 2006}) 10... Nc6 {[%emt 0:04:50] [#] White is slightly better.} 11. Nxc6 {[%emt 0:07:40]} Qxc6 {[%emt 0:00:11]} 12. Bd2 {[%emt 0:03:17]} Bb7 {[%emt 0:02:53]} 13. O-O-O {[%emt 0:04:35]} O-O-O {[%emt 0:12:16]} 14. g5 {[%emt 0:07:05]} hxg5 {[%emt 0:02:49]} (14... Nd7 $16) 15. fxg5 $18 {[%emt 0:02:11]} Nd7 {[%emt 0:00:21]} 16. Qxf7 {[%emt 0:03:02] Weighted Error Value: White=0.06 (flawless) /Black=0.34} 1-0

[Event "Kvika Banki League Iceland 2022-23"]
[Site "Reykjavik"]
[Date "2022.10.16"]
[Round "5.24"]
[White "Gretarsson, Andri A"]
[Black "Eggleston, David J"]
[Result "1/2-1/2"]
[ECO "C00"]
[WhiteElo "2267"]
[BlackElo "2354"]
[Annotator "TA"]
[PlyCount "108"]
[EventDate "2022.10.13"]
[EventType "team-tourn"]
[EventCountry "ISL"]
[SourceTitle "playchess.com"]
[Source "ChessBase"]
[SourceQuality "1"]
[TimeControl "5400+30"]

{[%evp 17,108,-41,-31,-68,-42,-58,-30,-75,-26,-15,0,-8,0,-14,0,-20,-6,-69,-41,-51,-27,-54,-15,-24,-3,-22,0,0,8,13,55,70,96,96,105,53,116,113,114,111,158,104,217,220,187,217,247,263,279,281,286,285,287,275,279,264,235,225,214,208,182,68,113,83,75,94,114,18,29,-10,8,-39,-28,-45,-20,-139,-88,-117,-37,-41,-37,-29,0,-44,0,0,0,-42,-29,-34,0,-50,0]} 1. e4 {[%emt 0:00:29]} e6 {[%emt 0:00:14]} 2. d3 {[%emt 0:01:15]} d5 {[%emt 0:00:07]} 3. Nd2 {[%emt 0:00:10]} Nf6 {[%emt 0:00:05]} 4. g3 {[%emt 0:01:10]} dxe4 {[%emt 0:01:53]} 5. dxe4 {[%emt 0:01:03]} Bc5 {[%emt 0:00:39]} 6. Bg2 {[%emt 0:03:22]} e5 {[%emt 0:00:07]} 7. Ngf3 {[%emt 0:01:02][%cal Bg1f3,Bf3h4,Bh4f5][%mdl 32]} Nc6 {[%emt 0:00:33]} 8. O-O {[%emt 0:00:35]} O-O {[%emt 0:08:53]} 9. h3 {[%emt 0:08:32]} a5 {[%emt 0:00:00]} 10. a4 {[%emt 0:07:55] C00: French: Unusual White 2nd moves.} h6 {[%emt 0:00:00]} 11. c3 {[%emt 0:02:43]} Re8 {[%emt 0:03:06] [#]} 12. Nh4 $146 {[%emt 0:11:23] Black has an edge.} ({Predecessor:} 12. Qc2 Be6 13. Nh4 Qd7 14. Kh2 Rad8 15. f4 {½-½ (15) Marinc,D (2016)-Carlile,O (2054) Prague 2015}) 12... Qe7 {[%emt 0:13:03]} (12... Qd3 $1 $17 {[%cal Rd3g3]} 13. Qf3 Qxf3 14. Nhxf3 Nh5) 13. Qf3 {[%emt 0:08:04]} Nh7 {[%emt 0:08:49]} 14. Nf5 {[%emt 0:02:36]} Qf6 {[%emt 0:00:20]} 15. g4 {[%emt 0:12:14]} Ne7 {[%emt 0:02:07][%cal Bc6e7,Be7g6,Bg6h4,Bh4g2][%mdl 32]} 16. Re1 {[%emt 0:03:48]} Ng6 {[%emt 0:03:46]} 17. Nf1 {[%emt 0:01:34]} (17. Qg3 $11) 17... Nh4 {[%emt 0:10:18]} 18. Qg3 {[%emt 0:06:22]} Nxg2 {[%emt 0:00:45]} (18... Nxf5 19. exf5 Qb6 20. Ne3 $14) 19. Kxg2 {[%emt 0:00:36]} Nf8 {[%emt 0:02:43]} 20. h4 {[%emt 0:01:35]} h5 {[%emt 0:03:18]} 21. g5 {[%emt 0:08:07]} Qc6 {[%emt 0:00:37]} 22. Qf3 {[%emt 0:00:34]} Bxf5 {[%emt 0:03:37]} 23. exf5 {[%emt 0:01:28]} Qxf3+ {[%emt 0:15:15]} 24. Kxf3 {[%emt 0:00:01]} g6 {[%emt 0:00:07]} 25. Ng3 {[%emt 0:01:48]} Nd7 {[%emt 0:00:51]} 26. b3 {[%emt 0:06:02]} (26. f6 $16) 26... Bf8 {[%emt 0:00:49]} (26... gxf5 $14 27. Nxf5 Kh7) 27. Be3 $16 {[%emt 0:01:27]} Rad8 {[%emt 0:07:55]} 28. Rad1 {[%emt 0:00:24]} b6 {[%emt 0:00:25]} ({Better is} 28... gxf5 29. Nxf5 Kh7) 29. Rd2 {[%emt 0:02:49] White is more active.} (29. Rd5 $142) 29... Nc5 {[%emt 0:02:53]} (29... e4+ $16 30. Kg2 Bd6) 30. Rxd8 $18 {[%emt 0:00:52]} Rxd8 {[%emt 0:00:07]} 31. Bxc5 {[%emt 0:00:09]} bxc5 {[%emt 0:00:56]} 32. Rxe5 {[%emt 0:02:28][%mdl 4096] Endgame KRB-KRN} (32. fxg6 fxg6 33. Rxe5 Kf7 $16) 32... Rb8 {[%emt 0:00:20]} 33. fxg6 {[%emt 0:00:29]} fxg6 {[%emt 0:00:09]} 34. Re6 {[%emt 0:00:31]} Kg7 {[%emt 0:01:01]} 35. Ra6 {[%emt 0:00:27]} Rxb3 {[%emt 0:00:33]} 36. Ne4 {[%emt 0:00:10]} ({Weaker is} 36. Rxa5 Rxc3+ 37. Ke2 Rc4 $15) 36... Bd6 {[%emt 0:03:50]} 37. Rxa5 {[%emt 0:00:15]} ({Not} 37. Nxd6 cxd6 38. Ke4 (38. Rxd6 Rxc3+ 39. Ke4 Rc4+ 40. Ke5 Rxh4 $11) 38... Rxc3 $14) 37... Kf7 {[%emt 0:00:14]} 38. Ke3 {[%emt 0:03:01]} Rb1 {[%emt 0:00:39]} 39. Nxc5 {[%emt 0:00:56]} (39. Nxd6+ $18 cxd6 40. Ra7+ Ke6 41. Rg7) 39... Rh1 {[%emt 0:00:14]} 40. Ne4 {[%emt 0:00:19]} Rxh4 {[%emt 0:00:23]} 41. Rd5 {[%emt 0:01:35] aiming for a5.} Ke6 {[%emt 0:00:29]} 42. c4 {[%emt 0:00:04]} (42. Rd4 $16) 42... Rh1 $11 {[%emt 0:00:34]} 43. Rb5 {[%emt 0:00:57]} Ra1 {[%emt 0:01:30]} 44. c5 {[%emt 0:00:30]} (44. Nxd6 $11 {is more appropriate.} Ra3+ 45. Ke4 cxd6 46. Ra5) 44... Ra3+ {[%emt 0:00:24]} 45. Ke2 {[%emt 0:00:12]} Be5 {[%emt 0:03:18] Hoping for ...h4.} 46. a5 {[%emt 0:00:39] [#]} (46. c6 $11) 46... c6 {[%emt 0:00:47]} (46... h4 $142 $1 {...h3 is the strong threat.} 47. Nd2 h3) 47. Rb6 {[%emt 0:00:29] [#]} Rxa5 {[%emt 0:00:10]} (47... h4 $1 $17 {White must now prevent ...h3.} 48. Rb1 h3) 48. f3 $15 {[%emt 0:00:39]} Ra2+ {[%emt 0:04:08]} 49. Ke3 {[%emt 0:00:28]} Kd5 {[%emt 0:00:56]} 50. Rb7 {[%emt 0:00:33]} Bd4+ {[%emt 0:00:22]} 51. Kf4 {[%emt 0:00:27]} Be5+ {[%emt 0:00:27]} 52. Ke3 {[%emt 0:00:04]} Ra3+ {[%emt 0:00:17]} 53. Ke2 {[%emt 0:00:28]} Ra2+ {[%emt 0:01:16]} 54. Kd3 {[%emt 0:00:29]} (54. Ke3 $11) 54... Ra3+ {[%emt 0:00:29] White really could win this.  Weighted Error Value: White=0.26 (precise) /Black=0.22 (precise)} (54... Ra8 $15) 1/2-1/2